fUSD/lending_fUSD_20260611
["ID","MTS","AMOUNT","RATE_DAILY","PERIOD"]
[424799357,1781172643000,-500.0,0.00013698,2]
[424799361,1781172643000,-500.0,0.00013698,2]
[424799258,1781172643000,-500.0,0.00013698,2]
[424799337,1781172643000,-500.0,0.00013698,2]
[424799299,1781172643000,-500.0,0.00013698,2]
[424799326,1781172643000,-171.51496798,0.00013698,2]
[424799303,1781172643000,-500.0,0.00013698,2]
[424799298,1781172643000,-500.0,0.00013698,2]
[424799251,1781172643000,-500.0,0.00013698,2]
[424799264,1781172643000,-500.0,0.00013698,2]
[424799254,1781172643000,-500.0,0.00013698,2]
[424799252,1781172643000,-500.0,0.00013698,2]
[424799269,1781172643000,-500.0,0.00013698,2]
[424799265,1781172643000,-500.0,0.00013698,2]
[424799267,1781172643000,-500.0,0.00013698,2]
[424799281,1781172643000,-500.0,0.00013698,2]
[424799270,1781172643000,-500.0,0.00013698,2]
[424799284,1781172643000,-500.0,0.00013698,2]
[424799286,1781172643000,-500.0,0.00013698,2]
[424799278,1781172643000,-500.0,0.00013698,2]
[424799262,1781172643000,-500.0,0.00013698,2]
[424799274,1781172643000,-415.12475003,0.00013698,2]
[424799277,1781172643000,-500.0,0.00013698,2]
[424799301,1781172643000,-500.0,0.00013698,2]
[424799305,1781172643000,-500.0,0.00013698,2]
[424799308,1781172643000,-500.0,0.00013698,2]
[424799294,1781172643000,-500.0,0.00013698,2]
[424799300,1781172643000,-500.0,0.00013698,2]
[424799293,1781172643000,-500.0,0.00013698,2]
[424799291,1781172643000,-500.0,0.00013698,2]
[424799290,1781172643000,-500.0,0.00013698,2]
[424799275,1781172643000,-502.88764057,0.00013698,2]
[424799272,1781172643000,-500.0,0.00013698,2]
[424799292,1781172643000,-500.0,0.00013698,2]
[424799454,1781172644000,-1230.20358461,0.00013699,2]
[424799438,1781172644000,-1230.20358461,0.00013699,2]
[424799465,1781172644000,-1230.20358461,0.00013699,2]
[424799424,1781172644000,-771.36,0.00013699,2]
[424799469,1781172644000,-1230.20358461,0.00013699,2]
[424799430,1781172644000,-1230.20358461,0.00013699,2]
[424799434,1781172644000,-1230.20358461,0.00013699,2]
[424799467,1781172644000,-1230.20358461,0.00013699,2]
[424799432,1781172644000,-1230.20358461,0.00013699,2]
[424799442,1781172644000,-1230.20358461,0.00013699,2]
[424799440,1781172644000,-1230.20358461,0.00013699,2]
[424799452,1781172644000,-1230.20358461,0.00013699,2]
[424799471,1781172644000,-1230.20358461,0.00013699,2]
[424799458,1781172644000,-1230.20358461,0.00013699,2]
[424799444,1781172644000,-1230.20358461,0.00013699,2]
[424799436,1781172644000,-1230.20358461,0.00013699,2]
[424799461,1781172644000,-1230.20358461,0.00013699,2]
[424799448,1781172644000,-1230.20358461,0.00013699,2]
[424799450,1781172644000,-1230.20358461,0.00013699,2]
[424799456,1781172644000,-1230.20358461,0.00013699,2]
[424799477,1781172644000,-1230.20358461,0.00013699,2]
[424799481,1781172644000,-1230.20358461,0.00013699,2]
[424799463,1781172644000,-1230.20358461,0.00013699,2]
[424799473,1781172644000,-1230.20358461,0.00013699,2]
[424799479,1781172644000,-1230.20358461,0.00013699,2]
[424799416,1781172644000,-150.0,0.00013698,2]
[424799475,1781172644000,-1230.20358461,0.00013699,2]
[424799426,1781172644000,-2500.0,0.00013699,2]
[424799365,1781172644000,-500.0,0.00013698,2]
[424799420,1781172644000,-185.12,0.00013699,2]
[424799367,1781172644000,-500.0,0.00013698,2]
[424799363,1781172644000,-632.22545111,0.00013698,2]
[424799373,1781172644000,-500.0,0.00013698,2]
[424799371,1781172644000,-500.0,0.00013698,2]
[424799377,1781172644000,-500.0,0.00013698,2]
[424799375,1781172644000,-500.0,0.00013698,2]
[424799379,1781172644000,-500.0,0.00013698,2]
[424799381,1781172644000,-500.0,0.00013698,2]
[424799369,1781172644000,-500.0,0.00013698,2]
[424799383,1781172644000,-500.0,0.00013698,2]
[424799395,1781172644000,-500.0,0.00013698,2]
[424799385,1781172644000,-500.0,0.00013698,2]
[424799418,1781172644000,-222.15,0.00013699,2]
[424799387,1781172644000,-500.0,0.00013698,2]
[424799403,1781172644000,-500.0,0.00013698,2]
[424799401,1781172644000,-500.0,0.00013698,2]
[424799399,1781172644000,-500.0,0.00013698,2]
[424799396,1781172644000,-500.0,0.00013698,2]
[424799392,1781172644000,-500.0,0.00013698,2]
[424799405,1781172644000,-500.0,0.00013698,2]
[424799407,1781172644000,-500.0,0.00013698,2]
[424799409,1781172644000,-462.54456704,0.00013698,2]
[424799414,1781172644000,-500.0,0.00013698,2]
[424799412,1781172644000,-500.0,0.00013698,2]
[424799422,1781172644000,-154.27,0.00013699,2]
[424799428,1781172644000,-22281.86,0.00013699,2]
[424799390,1781172644000,-500.0,0.00013698,2]
[424799483,1781172644000,-1230.20358461,0.00013699,2]
[424799446,1781172644000,-1230.20358461,0.00013699,2]
[424799485,1781172644000,-1230.20358461,0.00013699,2]
[424799543,1781172644000,-1230.20358461,0.00013699,2]
[424799556,1781172644000,-1207.83624669,0.00013699,2]
[424799558,1781172644000,-1207.83624669,0.00013699,2]
[424799565,1781172644000,-1207.83624669,0.00013699,2]
[424799563,1781172644000,-1207.83624669,0.00013699,2]
[424799561,1781172644000,-1207.83624669,0.00013699,2]
[424799579,1781172644000,-1207.83624669,0.00013699,2]
[424799567,1781172644000,-1207.83624669,0.00013699,2]
[424799577,1781172644000,-1207.83624669,0.00013699,2]
[424799571,1781172644000,-1207.83624669,0.00013699,2]
[424799573,1781172644000,-1207.83624669,0.00013699,2]
[424799569,1781172644000,-1207.83624669,0.00013699,2]
[424799554,1781172644000,-1207.83624669,0.00013699,2]
[424799575,1781172644000,-1207.83624669,0.00013699,2]
[424799595,1781172644000,-1195.75788424,0.00013699,2]
[424799587,1781172644000,-1207.83624669,0.00013699,2]
[424799585,1781172644000,-1207.83624669,0.00013699,2]
[424799589,1781172644000,-1207.83624669,0.00013699,2]
[424799597,1781172644000,-1195.75788424,0.00013699,2]
[424799604,1781172644000,-1195.75788424,0.00013699,2]
[424799593,1781172644000,-1195.75788424,0.00013699,2]
[424799599,1781172644000,-1195.75788424,0.00013699,2]
[424799591,1781172644000,-1195.75788424,0.00013699,2]
[424799602,1781172644000,-1195.75788424,0.00013699,2]
[424799606,1781172644000,-1195.75788424,0.00013699,2]
[424799497,1781172644000,-1230.20358461,0.00013699,2]
[424799583,1781172644000,-1207.83624669,0.00013699,2]
[424799550,1781172644000,-1207.83624669,0.00013699,2]
[424799581,1781172644000,-1207.83624669,0.00013699,2]
[424799547,1781172644000,-1207.83624669,0.00013699,2]
[424799552,1781172644000,-1207.83624669,0.00013699,2]
[424799493,1781172644000,-1230.20358461,0.00013699,2]
[424799489,1781172644000,-1230.20358461,0.00013699,2]
[424799487,1781172644000,-1230.20358461,0.00013699,2]
[424799495,1781172644000,-1230.20358461,0.00013699,2]
[424799499,1781172644000,-1230.20358461,0.00013699,2]
[424799504,1781172644000,-1230.20358461,0.00013699,2]
[424799501,1781172644000,-1230.20358461,0.00013699,2]
[424799506,1781172644000,-1230.20358461,0.00013699,2]
[424799508,1781172644000,-1230.20358461,0.00013699,2]
[424799516,1781172644000,-1230.20358461,0.00013699,2]
[424799510,1781172644000,-1230.20358461,0.00013699,2]
[424799514,1781172644000,-1230.20358461,0.00013699,2]
[424799512,1781172644000,-1230.20358461,0.00013699,2]
[424799491,1781172644000,-1230.20358461,0.00013699,2]
[424799539,1781172644000,-1230.20358461,0.00013699,2]
[424799528,1781172644000,-1230.20358461,0.00013699,2]
[424799541,1781172644000,-1230.20358461,0.00013699,2]
[424799537,1781172644000,-1230.20358461,0.00013699,2]
[424799535,1781172644000,-1230.20358461,0.00013699,2]
[424799526,1781172644000,-1230.20358461,0.00013699,2]
[424799545,1781172644000,-1207.83624669,0.00013699,2]
[424799522,1781172644000,-1230.20358461,0.00013699,2]
[424799520,1781172644000,-1230.20358461,0.00013699,2]
[424799524,1781172644000,-1230.20358461,0.00013699,2]
[424799532,1781172644000,-1230.20358461,0.00013699,2]
[424799530,1781172644000,-1230.20358461,0.00013699,2]
[424799518,1781172644000,-1230.20358461,0.00013699,2]
[424799686,1781172645000,-297.05722595,0.00013836,2]
[424799692,1781172645000,-150.0,0.00013856,2]
[424799695,1781172645000,-150.0,0.00013862,2]
[424799688,1781172645000,-150.0,0.00013838,2]
[424799664,1781172645000,-150.0,0.00013787,2]
[424799678,1781172645000,-150.0,0.00013825,2]
[424799662,1781172645000,-150.0,0.00013787,2]
[424799682,1781172645000,-150.0,0.00013829,2]
[424799666,1781172645000,-297.05722595,0.0001379,2]
[424799668,1781172645000,-150.0,0.00013794,2]
[424799707,1781172645000,-150.0,0.00013896,2]
[424799680,1781172645000,-150.0,0.00013828,2]
[424799703,1781172645000,-297.05722595,0.00013881,2]
[424799711,1781172645000,-297.05722595,0.00013896,2]
[424799705,1781172645000,-150.0,0.00013882,2]
[424799699,1781172645000,-297.05722595,0.00013866,2]
[424799701,1781172645000,-150.0,0.0001387,2]
[424799709,1781172645000,-150.0,0.00013896,2]
[424799713,1781172645000,-150.0,0.000139,2]
[424799716,1781172645000,-5000.0,0.000139,5]
[424799719,1781172645000,-150.0,0.00013908,2]
[424799717,1781172645000,-150.0,0.00013902,2]
[424799722,1781172645000,-297.05722595,0.00013912,2]
[424799728,1781172645000,-150.0,0.00013934,2]
[424799730,1781172645000,-150.0,0.00013935,2]
[424799724,1781172645000,-297.05722595,0.00013927,2]
[424799690,1781172645000,-297.05722595,0.00013851,2]
[424799674,1781172645000,-150.0,0.00013807,2]
[424799726,1781172645000,-150.0,0.0001393,2]
[424799672,1781172645000,-297.05722595,0.00013806,2]
[424799608,1781172645000,-1195.75788424,0.00013699,2]
[424799616,1781172645000,-150.0,0.000137,2]
[424799612,1781172645000,-297.05722595,0.000137,2]
[424799614,1781172645000,-441.95,0.000137,2]
[424799610,1781172645000,-1195.75788421,0.00013699,2]
[424799618,1781172645000,-150.0,0.000137,2]
[424799626,1781172645000,-150.0,0.00013711,2]
[424799622,1781172645000,-150.0,0.000137,2]
[424799624,1781172645000,-278.60891467,0.000137,2]
[424799620,1781172645000,-150.0,0.000137,2]
[424799629,1781172645000,-150.0,0.00013712,2]
[424799631,1781172645000,-297.05722595,0.00013715,2]
[424799633,1781172645000,-150.0,0.00013724,2]
[424799635,1781172645000,-150.0,0.00013726,2]
[424799645,1781172645000,-150.0,0.0001375,2]
[424799643,1781172645000,-297.05722595,0.00013745,2]
[424799651,1781172645000,-150.0,0.0001376,2]
[424799647,1781172645000,-150.0,0.00013751,2]
[424799649,1781172645000,-150.0,0.0001376,2]
[424799639,1781172645000,-150.0,0.00013737,2]
[424799641,1781172645000,-150.0,0.00013743,2]
[424799653,1781172645000,-297.05722595,0.0001376,2]
[424799637,1781172645000,-297.05722595,0.0001373,2]
[424799658,1781172645000,-297.05722595,0.00013775,2]
[424799656,1781172645000,-150.0,0.00013775,2]
[424799660,1781172645000,-150.0,0.00013777,2]
[424799670,1781172645000,-150.0,0.00013803,2]
[424799676,1781172645000,-297.05722595,0.00013821,2]
[424799734,1781172645000,-297.05722595,0.00013942,2]
[424799697,1781172645000,-150.0,0.00013862,2]
[424799738,1781172645000,-150.0,0.00013961,2]
[424799800,1781172645000,-150.0,0.00014094,2]
[424799794,1781172645000,-150.0,0.00014087,2]
[424799798,1781172645000,-297.05722595,0.00014093,2]
[424799796,1781172645000,-150.0,0.00014092,2]
[424799804,1781172645000,-297.05722595,0.00014108,2]
[424799808,1781172645000,-297.05722595,0.00014123,2]
[424799806,1781172645000,-150.0,0.00014119,2]
[424799809,1781172645000,-150.0,0.00014125,2]
[424799815,1781172645000,-297.05722595,0.00014139,2]
[424799812,1781172645000,-150.0,0.00014125,2]
[424799813,1781172645000,-150.0,0.00014135,2]
[424799817,1781172645000,-150.0,0.00014145,2]
[424799826,1781172645000,-150.0,0.00014162,2]
[424799823,1781172645000,-150.0,0.00014157,2]
[424799827,1781172645000,-150.0,0.00014169,2]
[424799819,1781172645000,-297.05722595,0.00014154,2]
[424799821,1781172645000,-253.1,0.00014156,2]
[424799829,1781172645000,-150.0,0.00014169,2]
[424799831,1781172645000,-297.05722595,0.00014169,2]
[424799849,1781172645000,-297.05722595,0.00014214,2]
[424799836,1781172645000,-297.05722595,0.00014184,2]
[424799838,1781172645000,-150.0,0.00014189,2]
[424799834,1781172645000,-150.0,0.00014171,2]
[424799840,1781172645000,-150.0,0.00014198,2]
[424799842,1781172645000,-297.05722595,0.00014199,2]
[424799847,1781172645000,-1500.0,0.00014205,2]
[424799732,1781172645000,-150.0,0.00013937,2]
[424799802,1781172645000,-150.0,0.00014101,2]
[424799790,1781172645000,-297.05722595,0.00014078,2]
[424799844,1781172645000,-150.0,0.000142,2]
[424799784,1781172645000,-297.05722595,0.00014063,2]
[424799751,1781172645000,-297.05722595,0.00013987,2]
[424799747,1781172645000,-150.0,0.00013987,2]
[424799736,1781172645000,-297.05722595,0.00013957,2]
[424799749,1781172645000,-150.0,0.00013987,2]
[424799739,1781172645000,-150.0,0.00013965,2]
[424799754,1781172645000,-150.0,0.00013998,2]
[424799753,1781172645000,-26574.84911613,0.0001399,2]
[424799792,1781172645000,-150.0,0.00014087,2]
[424799743,1781172645000,-297.05722595,0.00013972,2]
[424799741,1781172645000,-150.0,0.00013966,2]
[424799745,1781172645000,-150.0,0.00013975,2]
[424799763,1781172645000,-150.0,0.00014012,2]
[424799759,1781172645000,-1500.0,0.00014,2]
[424799757,1781172645000,-150.0,0.00013999,2]
[424799767,1781172645000,-297.05722595,0.00014017,2]
[424799788,1781172645000,-150.0,0.00014067,2]
[424799761,1781172645000,-297.05722595,0.00014002,2]
[424799786,1781172645000,-150.0,0.00014066,2]
[424799782,1781172645000,-150.0,0.00014062,2]
[424799771,1781172645000,-150.0,0.00014033,2]
[424799774,1781172645000,-150.0,0.00014033,2]
[424799777,1781172645000,-150.0,0.0001404,2]
[424799779,1781172645000,-297.05722595,0.00014048,2]
[424799776,1781172645000,-297.05722595,0.00014033,2]
[424799769,1781172645000,-150.0,0.0001403,2]
[424799846,1781172645000,-150.0,0.00014203,2]
[424799765,1781172645000,-150.0,0.00014014,2]
[424799781,1781172645000,-150.0,0.0001405,2]
[424799932,1781172646000,-150.0,0.00014373,2]
[424799938,1781172646000,-150.0,0.00014382,2]
[424799934,1781172646000,-150.0,0.0001438,2]
[424799936,1781172646000,-297.05722595,0.00014381,2]
[424799930,1781172646000,-297.05722595,0.00014366,2]
[424799923,1781172646000,-150.0,0.00014349,2]
[424799911,1781172646000,-150.0,0.00014317,2]
[424799925,1781172646000,-297.05722595,0.00014351,2]
[424799913,1781172646000,-297.05722595,0.0001432,2]
[424799909,1781172646000,-150.0,0.00014312,2]
[424799927,1781172646000,-150.0,0.00014355,2]
[424799948,1781172646000,-1240.73551738,0.000144,2]
[424799978,1781172646000,-660.37,0.00014449,2]
[424799940,1781172646000,-150.0,0.00014387,2]
[424799952,1781172646000,-150.0,0.00014408,2]
[424799944,1781172646000,-10482.63494594,0.0001439,2]
[424799950,1781172646000,-150.0,0.00014407,2]
[424799942,1781172646000,-150.0,0.00014387,2]
[424799957,1781172646000,-150.0,0.00014412,2]
[424799955,1781172646000,-297.05722595,0.00014411,2]
[424799961,1781172646000,-297.05722595,0.00014426,2]
[424799963,1781172646000,-150.0,0.00014434,2]
[424799959,1781172646000,-150.0,0.00014424,2]
[424799965,1781172646000,-150.0,0.00014441,2]
[424799907,1781172646000,-297.05722595,0.00014305,2]
[424799946,1781172646000,-297.05722595,0.00014396,2]
[424799919,1781172646000,-150.0,0.00014339,2]
[424799879,1781172646000,-150.0,0.00014271,2]
[424799917,1781172646000,-297.05722595,0.00014335,2]
[424799976,1781172646000,-993.33,0.00014449,2]
[424799851,1781172646000,-150.0,0.00014221,2]
[424799853,1781172646000,-150.0,0.00014224,2]
[424799855,1781172646000,-297.05722595,0.00014229,2]
[424799866,1781172646000,-150.0,0.00014237,2]
[424799864,1781172646000,-150.0,0.00014237,2]
[424799868,1781172646000,-297.05722595,0.00014245,2]
[424799857,1781172646000,-150.0,0.00014237,2]
[424799860,1781172646000,-150.0,0.00014237,2]
[424799862,1781172646000,-150.0,0.00014237,2]
[424799870,1781172646000,-150.0,0.0001425,2]
[424799872,1781172646000,-156.15,0.00014251,2]
[424799921,1781172646000,-150.0,0.00014349,2]
[424799875,1781172646000,-150.0,0.00014253,2]
[424799881,1781172646000,-150.0,0.00014274,2]
[424799883,1781172646000,-297.05722595,0.00014275,2]
[424799887,1781172646000,-1341.77,0.00014281,2]
[424799885,1781172646000,-150.0,0.00014276,2]
[424799896,1781172646000,-297.05722595,0.0001429,2]
[424799894,1781172646000,-20496.17460732,0.00014285,2]
[424799892,1781172646000,-150.0,0.00014285,2]
[424799900,1781172646000,-150.0,0.00014303,2]
[424799898,1781172646000,-474.66642902,0.00014295,2]
[424799902,1781172646000,-150.0,0.00014305,2]
[424799905,1781172646000,-150.0,0.00014305,2]
[424799915,1781172646000,-150.0,0.00014329,2]
[424799877,1781172646000,-297.05722595,0.0001426,2]
[424799974,1781172646000,-2726.92,0.00014449,2]
[424799890,1781172646000,-1961.448856,0.00014284,2]
[424799969,1781172646000,-297.05722595,0.00014441,2]
[424800052,1781172646000,-297.05722595,0.00014608,2]
[424800039,1781172646000,-150.0,0.00014578,2]
[424800029,1781172646000,-297.05722595,0.00014562,2]
[424800041,1781172646000,-297.05722595,0.00014578,2]
[424800046,1781172646000,-297.05722595,0.00014593,2]
[424800043,1781172646000,-150.0,0.00014592,2]
[424800054,1781172646000,-150.0,0.00014612,2]
[424800056,1781172646000,-150.0,0.00014612,2]
[424800059,1781172646000,-150.0,0.00014618,2]
[424800084,1781172646000,-150.0,0.00014687,2]
[424800063,1781172646000,-150.0,0.00014636,2]
[424800061,1781172646000,-297.05722595,0.00014623,2]
[424800050,1781172646000,-150.0,0.00014604,2]
[424800068,1781172646000,-150.0,0.00014646,2]
[424800066,1781172646000,-150.0,0.00014645,2]
[424800072,1781172646000,-297.05722595,0.00014653,2]
[424800074,1781172646000,-150.0,0.00014667,2]
[424800076,1781172646000,-297.05722595,0.00014668,2]
[424800070,1781172646000,-150.0,0.00014649,2]
[424800078,1781172646000,-150.0,0.00014671,2]
[424800089,1781172646000,-150.0,0.00014697,2]
[424800091,1781172646000,-297.05722595,0.00014699,2]
[424800093,1781172646000,-150.0,0.00014699,2]
[424800087,1781172646000,-150.0,0.00014687,2]
[424800082,1781172646000,-297.05722595,0.00014684,2]
[424799971,1781172646000,-150.0,0.00014444,2]
[424800065,1781172646000,-297.05722595,0.00014638,2]
[424800048,1781172646000,-87499.9321983,0.000146,2]
[424800080,1781172646000,-150.0,0.0001468,2]
[424800037,1781172646000,-150.0,0.00014578,2]
[424800035,1781172646000,-150.0,0.00014574,2]
[424799982,1781172646000,-150.0,0.0001446,2]
[424799988,1781172646000,-150.0,0.00014475,2]
[424799980,1781172646000,-297.05722595,0.00014456,2]
[424799984,1781172646000,-150.0,0.00014462,2]
[424799986,1781172646000,-297.05722595,0.00014472,2]
[424799990,1781172646000,-150.0,0.00014476,2]
[424799967,1781172646000,-150.0,0.00014441,2]
[424799998,1781172646000,-297.05722595,0.00014487,2]
[424799994,1781172646000,-150.0,0.00014487,2]
[424800000,1781172646000,-150.0,0.00014499,2]
[424800002,1781172646000,-297.05722595,0.00014502,2]
[424800006,1781172646000,-150.0,0.00014509,2]
[424799992,1781172646000,-150.0,0.00014487,2]
[424800010,1781172646000,-297.05722595,0.00014517,2]
[424800033,1781172646000,-150.0,0.00014572,2]
[424800008,1781172646000,-150.0,0.00014513,2]
[424800031,1781172646000,-150.0,0.00014566,2]
[424800020,1781172646000,-150.0,0.00014544,2]
[424800016,1781172646000,-150.0,0.00014539,2]
[424800027,1781172646000,-2129.0,0.00014562,2]
[424800025,1781172646000,-155.04,0.0001456,2]
[424800014,1781172646000,-150.0,0.00014537,2]
[424800004,1781172646000,-150.0,0.00014508,2]
[424800022,1781172646000,-297.05722595,0.00014547,2]
[424800012,1781172646000,-297.05722595,0.00014532,2]
[424800018,1781172646000,-150.0,0.0001454,2]
[424800173,1781172647000,-150.0,0.00014827,2]
[424800188,1781172647000,-150.0,0.0001485,2]
[424800175,1781172647000,-150.0,0.00014829,2]
[424800171,1781172647000,-25000.0,0.00014821,3]
[424800167,1781172647000,-150.0,0.00014816,2]
[424800169,1781172647000,-297.05722595,0.0001482,2]
[424800159,1781172647000,-150.0,0.00014802,2]
[424800157,1781172647000,-5000.0,0.000148,5]
[424800165,1781172647000,-25000.0,0.00014812,3]
[424800161,1781172647000,-25000.0,0.00014803,3]
[424800190,1781172647000,-150.0,0.0001485,2]
[424800215,1781172647000,-150.0,0.00014891,2]
[424800184,1781172647000,-25000.0,0.00014838,3]
[424800179,1781172647000,-297.05722595,0.00014835,2]
[424800182,1781172647000,-150.0,0.00014836,2]
[424800193,1781172647000,-297.05722595,0.0001485,2]
[424800195,1781172647000,-150.0,0.00014855,2]
[424800186,1781172647000,-25000.0,0.00014847,3]
[424800199,1781172647000,-150.0,0.00014859,2]
[424800201,1781172647000,-25000.0,0.00014865,3]
[424800197,1781172647000,-25000.0,0.00014856,3]
[424800203,1781172647000,-297.05722595,0.00014865,2]
[424800205,1781172647000,-25000.0,0.00014874,3]
[424800152,1781172647000,-350.0,0.000148,2]
[424800177,1781172647000,-25000.0,0.0001483,3]
[424800154,1781172647000,-2368.92644874,0.000148,2]
[424800123,1781172647000,-2000.0,0.00014749,2]
[424800141,1781172647000,-150.0,0.00014782,2]
[424800210,1781172647000,-150.0,0.00014881,2]
[424800095,1781172647000,-5000.0,0.000147,5]
[424800097,1781172647000,-150.0,0.00014714,2]
[424800099,1781172647000,-150.0,0.00014714,2]
[424800102,1781172647000,-297.05722595,0.00014714,2]
[424800113,1781172647000,-150.0,0.00014731,2]
[424800115,1781172647000,-150.0,0.00014737,2]
[424800108,1781172647000,-150.0,0.00014724,2]
[424800104,1781172647000,-168.90688265,0.00014721,2]
[424800117,1781172647000,-297.05722595,0.00014744,2]
[424800119,1781172647000,-1199.27823509,0.00014747,2]
[424800121,1781172647000,-150.0,0.00014748,2]
[424800106,1781172647000,-150.0,0.00014723,2]
[424800111,1781172647000,-297.05722595,0.00014729,2]
[424800126,1781172647000,-150.0,0.0001475,2]
[424800130,1781172647000,-297.05722595,0.00014759,2]
[424800132,1781172647000,-150.0,0.00014762,2]
[424800128,1781172647000,-1555.5,0.00014753,2]
[424800137,1781172647000,-297.05722595,0.00014774,2]
[424800134,1781172647000,-150.0,0.00014763,2]
[424800139,1781172647000,-150.0,0.00014776,2]
[424800143,1781172647000,-297.05722595,0.0001479,2]
[424800148,1781172647000,-150.0,0.00014795,2]
[424800150,1781172647000,-150.0,0.00014799,2]
[424800146,1781172647000,-25000.0,0.00014794,3]
[424800163,1781172647000,-297.05722595,0.00014805,2]
[424800207,1781172647000,-150.0,0.00014874,2]
[424800228,1781172647000,-20496.17460732,0.000149,2]
[424800209,1781172647000,-297.05722595,0.0001488,2]
[424800287,1781172647000,-297.05722595,0.00014986,2]
[424800281,1781172647000,-150.75812701,0.00014986,2]
[424800283,1781172647000,-210.0975545,0.00014986,2]
[424800275,1781172647000,-208.11144819,0.00014986,2]
[424800285,1781172647000,-285.87761885,0.00014986,2]
[424800292,1781172647000,-115968.91106027,0.00014989,2]
[424800273,1781172647000,-257.36274763,0.00014986,2]
[424800279,1781172647000,-248.12091067,0.00014986,2]
[424800277,1781172647000,-279.86118902,0.00014986,2]
[424800290,1781172647000,-289.90717118,0.00014986,2]
[424800300,1781172647000,-1168.92649491,0.00014999,5]
[424800315,1781172647000,-300.0,0.00014999,2]
[424800211,1781172647000,-25000.0,0.00014882,3]
[424800302,1781172647000,-666.0,0.00014999,2]
[424800296,1781172647000,-151.0,0.00014997,2]
[424800298,1781172647000,-166.66,0.00014997,2]
[424800319,1781172647000,-6337.63512786,0.00015,2]
[424800312,1781172647000,-666.0,0.00014999,2]
[424800321,1781172647000,-11886369.59032745,0.00015,2]
[424800306,1781172647000,-300.0,0.00014999,2]
[424800317,1781172647000,-300.0,0.00014999,2]
[424800308,1781172647000,-300.0,0.00014999,2]
[424800310,1781172647000,-300.0,0.00014999,2]
[424800325,1781172647000,-1020720.91573465,0.00015,2]
[424800323,1781172647000,-400.0,0.00015,2]
[424800294,1781172647000,-356.57179864,0.0001499,2]
[424800269,1781172647000,-297.05722595,0.00014971,2]
[424800304,1781172647000,-300.0,0.00014999,2]
[424800263,1781172647000,-150.0,0.00014954,2]
[424800271,1781172647000,-225.43309031,0.00014986,2]
[424800219,1781172647000,-297.05722595,0.00014895,2]
[424800212,1781172647000,-150.0,0.00014884,2]
[424800213,1781172647000,-356.57179864,0.0001489,2]
[424800221,1781172647000,-10819.58354044,0.000149,2]
[424800217,1781172647000,-25000.0,0.00014891,3]
[424800223,1781172647000,-25000.0,0.000149,3]
[424800226,1781172647000,-5800.0,0.000149,2]
[424800236,1781172647000,-2000.0,0.000149,2]
[424800238,1781172647000,-648.01611444,0.000149,2]
[424800234,1781172647000,-250.0,0.000149,2]
[424800230,1781172647000,-474.66642902,0.000149,2]
[424800242,1781172647000,-291.64660163,0.00014908,2]
[424800231,1781172647000,-5000.0,0.000149,5]
[424800259,1781172647000,-150.0,0.00014949,2]
[424800261,1781172647000,-150.0,0.00014952,2]
[424800267,1781172647000,-150.0,0.0001496,2]
[424800265,1781172647000,-297.05722595,0.00014956,2]
[424800244,1781172647000,-297.05722595,0.00014911,2]
[424800248,1781172647000,-150.0,0.00014918,2]
[424800252,1781172647000,-297.05722595,0.00014926,2]
[424800257,1781172647000,-297.05722595,0.00014941,2]
[424800250,1781172647000,-150.0,0.00014923,2]
[424800246,1781172647000,-150.0,0.00014911,2]
[424800240,1781172647000,-150.0,0.00014907,2]
[424800254,1781172647000,-150.0,0.00014934,2]